bitfinex-derivatives/quotes_BNBF0:USTF0_20250316
["timestamp","ask_amount","ask_price","bid_price","bid_amount"]
[1742159215230,0.27644584,602.41,601.42,1.1305463]
[1742159215529,0.27644584,602.4,601.42,1.1305463]
[1742159215724,0.27644584,602.44,601.42,1.1305463]
[1742159215929,0.27644584,602.43,601.42,1.1305463]
[1742159216129,0.27644584,602.42,601.42,1.1305463]
[1742159216428,0.27644584,602.41,601.42,1.1305463]
[1742159216628,0.33197775,602.45,601.42,1.1305463]
[1742159216629,0.27644584,602.44,601.42,1.1305463]
[1742159216825,0.33197775,602.45,601.42,1.1305463]
[1742159217033,0.27648158,602.44,601.42,1.1305463]
[1742159217334,0.27648158,602.43,601.42,1.1305463]
[1742159217529,0.27648158,602.42,601.42,1.1305463]
[1742159217830,0.27648158,602.41,601.42,1.1305463]
[1742159218031,0.27648158,602.44,601.42,1.1305463]
[1742159218329,0.27648158,602.43,601.42,1.1305463]
[1742159218632,0.33197775,602.45,601.42,1.1305463]
[1742159218822,0.27652081,602.44,601.42,0.798]
[1742159219430,0.60850577,602.43,601.42,0.798]
[1742159219632,0.276517,602.42,601.42,0.798]
[1742159220031,0.3319998,602.41,601.42,0.798]
[1742159220225,0.276517,602.4,601.42,0.798]
[1742159220430,0.33201082,602.39,601.42,0.798]
[1742159220623,0.276517,602.38,601.42,0.798]
[1742159220826,0.33202184,602.37,601.42,0.798]
[1742159221026,0.276517,602.36,601.42,0.798]
[1742159221233,0.33203287,602.35,601.42,0.798]
[1742159221432,0.276517,602.34,601.42,0.798]
[1742159221635,0.33204389,602.33,601.42,0.798]
[1742159221832,0.276517,602.32,601.42,0.798]
[1742159222029,0.33205492,602.31,601.42,0.798]
[1742159222232,0.276517,602.3,601.42,0.798]
[1742159223836,0.33205492,602.31,601.42,0.798]
[1742159224036,0.27649196,602.3,601.42,0.798]
[1742159225738,0.27649154,602.29,601.42,0.798]
[1742159225938,0.27649154,602.3,601.42,0.798]
[1742159233243,0.27650309,602.29,601.42,0.798]
[1742159233444,0.27650309,602.3,601.42,0.798]
[1742159236844,0.33205492,602.31,601.42,0.798]
[1742159237048,0.27645246,602.3,601.42,0.798]
[1742159238846,0.27645246,602.29,601.42,0.798]
[1742159239052,0.27645246,602.5,601.42,0.798]
[1742159240751,0.27645246,602.7,601.42,0.798]
[1742159241053,0.60829801,602.69,601.42,0.798]
[1742159241256,0.60830352,602.68,601.42,0.798]
[1742159241452,0.60830903,602.67,601.42,0.798]
[1742159241648,0.60831453,602.66,601.42,0.798]
[1742159241849,0.60832004,602.65,601.42,0.798]
[1742159242051,0.60832555,602.64,601.42,0.798]
[1742159242248,0.60833105,602.63,601.42,0.798]
[1742159242553,0.27636507,602.62,601.42,0.798]
[1742159244150,0.33187859,602.63,601.42,0.798]
[1742159244457,0.27633945,602.62,601.42,0.798]
[1742159246256,0.27634025,602.61,601.42,0.798]
[1742159246458,0.27634025,602.62,601.42,0.798]
[1742159249956,0.27634634,602.61,601.42,0.798]
[1742159250155,0.27634634,602.62,601.42,0.798]
[1742159250960,0.33188961,602.61,601.42,0.798]
[1742159251159,0.27634634,602.6,601.42,0.798]
[1742159251359,0.33190062,602.59,601.42,0.798]
[1742159251560,0.27634634,602.58,601.42,0.798]
[1742159252161,0.33191164,602.57,601.42,0.798]
[1742159252462,0.27634634,602.56,601.42,0.798]
[1742159252658,0.33192266,602.55,601.42,0.798]
[1742159253058,0.27634634,602.54,601.42,0.798]
[1742159253262,0.33193367,602.53,601.42,0.798]
[1742159253463,0.27634634,602.52,601.42,0.798]
[1742159253661,0.33194469,602.51,601.42,0.798]
[1742159253961,0.27634634,602.5,601.42,0.798]
[1742159254160,0.33195571,602.49,601.42,0.798]
[1742159254364,0.27645316,602.48,601.42,0.798]
[1742159254558,0.33196673,602.47,601.42,0.798]
[1742159254762,0.27645316,602.46,601.42,0.798]
[1742159263364,0.27645316,602.45,601.42,0.798]
[1742159263564,0.33196673,602.47,601.42,0.798]
[1742159263565,0.27645316,602.46,601.42,0.798]
[1742159263769,0.27645316,602.45,601.42,0.798]
[1742159263968,0.33196673,602.47,601.42,0.798]
[1742159263969,0.27645316,602.44,601.42,0.798]
[1742159264270,0.27645316,602.43,601.42,0.798]
[1742159264470,0.27645316,602.46,601.42,0.798]
[1742159268270,0.33196673,602.47,601.42,0.798]
[1742159268473,0.27644065,602.46,601.42,0.798]
[1742159279481,0.27644065,602.46,601.42,1.1305463]
[1742159280679,0.27644065,602.46,601.43,0.30532151]
[1742159283676,0.27644065,602.46,601.43,1.04032151]
[1742159283879,0.27644065,602.46,601.44,0.30532151]
[1742159286081,0.33196673,602.47,601.43,0.735]
[1742159286282,0.27628988,602.46,601.43,0.735]
[1742159286482,0.27628988,602.46,601.44,0.30531352]
[1742159286784,0.27628988,602.46,601.43,0.735]
[1742159287483,0.27628988,602.46,601.44,0.30531838]
[1742159287679,0.27628988,602.46,601.43,0.735]
[1742159287879,0.27626495,602.45,601.44,0.30529664]
[1742159288184,0.27626495,602.44,601.45,0.33252971]
[1742159288385,0.27626495,602.8,601.46,0.30529664]
[1742159288579,0.27626495,602.79,601.47,0.33251866]
[1742159288784,0.27626495,602.78,601.47,0.33251866]
[1742159289083,0.27626495,602.77,601.47,0.33251866]
[1742159289285,0.27626495,602.79,601.47,0.33251866]
[1742159289585,0.27626495,602.78,601.47,0.33251866]
[1742159289781,0.27626495,602.79,601.47,0.33251866]
[1742159289985,0.27626495,602.78,601.47,0.33251866]
[1742159290187,0.27626495,602.79,601.47,0.33251866]
[1742159290481,0.331785,602.8,601.47,0.33251866]
[1742159290482,0.27626495,602.78,601.47,0.33251866]
[1742159290683,0.27626495,602.77,601.47,0.33251866]
[1742159290881,0.27626495,602.76,601.47,0.33251866]
[1742159291081,0.27626495,602.75,601.47,0.33251866]
[1742159291283,0.331785,602.8,601.47,0.33251866]
[1742159291284,0.27626495,602.74,601.47,0.33251866]
[1742159291481,0.27626495,602.79,601.47,0.33251866]
[1742159291685,0.27626495,602.78,601.47,0.33251866]
[1742159291883,0.27626495,602.77,601.47,0.33251866]
[1742159292081,0.27626495,602.76,601.47,0.33251866]
[1742159292284,0.331785,602.8,601.47,0.33251866]
[1742159292285,0.27626495,602.79,601.47,0.33251866]
[1742159292483,0.27626495,602.78,601.47,0.33251866]
[1742159292681,0.27626495,602.77,601.47,0.33251866]
[1742159292987,0.27626495,602.76,601.47,0.33251866]
[1742159293191,0.27626495,602.75,601.48,0.30530663]
[1742159293388,0.27626495,602.75,601.48,0.33251313]
[1742159293689,0.27626495,602.74,601.48,0.33251313]
[1742159293889,0.27626495,602.73,601.48,0.33251313]
[1742159294082,0.27626495,602.79,601.48,0.33251313]
[1742159294286,0.27626495,602.78,601.48,0.33251313]
[1742159294485,0.27626495,602.77,601.48,0.33251313]
[1742159294684,0.27626495,602.76,601.48,0.33251313]
[1742159294883,0.27626495,602.75,601.48,0.33251313]
[1742159295289,0.27626495,602.74,601.48,0.33251313]
[1742159295584,0.27626495,602.73,601.48,0.33251313]
[1742159295785,2.84253576,602.78,601.48,0.33251313]
[1742159295987,0.27626495,602.77,601.48,0.33251313]
[1742159296891,2.84253576,602.78,601.48,0.33251313]
[1742159297190,0.27627505,602.77,601.48,0.33251313]
[1742159297585,0.27627505,602.79,601.48,0.33251313]
[1742159297787,0.27627505,602.78,601.48,0.33251313]
[1742159297989,0.27627505,602.79,601.48,0.33251313]
[1742159299486,0.331785,602.8,601.48,0.33251313]
[1742159299690,0.27627663,602.79,601.48,0.33251313]
[1742159309398,0.27627663,602.79,601.49,0.478]
[1742159309704,0.27627663,602.79,601.5,0.33250207]
[1742159312002,0.331785,602.8,601.5,0.33250207]
[1742159312200,0.27621686,602.79,601.5,0.33250207]
[1742159312903,0.27621648,602.78,601.5,0.33250207]
[1742159313099,0.27621648,602.79,601.5,0.33250207]
[1742159314605,0.27621648,602.79,601.51,0.30525361]
[1742159314809,0.27621648,602.79,601.52,0.33249102]
[1742159316504,0.27621648,602.79,601.53,0.30525666]
[1742159316712,0.27621648,602.79,601.54,0.33247996]
[1742159317508,0.27621648,602.79,601.55,0.30525441]
[1742159317712,0.27621648,602.79,601.56,0.33246891]
[1742159320313,0.27621648,602.79,601.57,0.30521508]
[1742159320512,0.27621648,602.79,601.58,0.33245786]
[1742159324918,0.331785,602.8,601.58,0.33245786]
[1742159325118,0.27618605,602.79,601.58,0.33245786]
[1742159328215,0.27618605,602.79,601.59,0.649]
[1742159328421,0.27618605,602.79,601.6,0.3324468]
[1742159330724,0.27618484,602.78,601.6,0.3324468]
[1742159330923,0.27618484,602.79,601.6,0.3324468]
[1742159331224,0.27618484,602.78,601.6,0.3324468]
[1742159331423,0.27618484,602.79,601.6,0.3324468]
[1742159331724,0.331785,602.8,601.6,0.3324468]
[1742159331725,0.27618484,602.78,601.61,0.30521508]
[1742159331917,0.27618484,602.79,601.62,0.33243575]
[1742159332121,0.27618484,602.79,601.63,0.30521508]
[1742159332321,0.27618484,602.79,601.64,0.3324247]
[1742159332721,0.27618484,602.79,601.65,0.30521558]
[1742159332923,0.27618484,602.79,601.66,0.33241365]
[1742159334027,0.27618484,602.79,601.67,0.30521558]
[1742159334227,0.27618484,602.79,601.67,0.63762371]
[1742159334420,0.27618484,602.79,601.67,0.33240813]
[1742159339830,0.331785,602.8,601.67,0.33240813]
[1742159340029,0.27618478,602.79,601.67,0.33240813]
[1742159346633,0.331785,602.8,601.67,0.33240813]
[1742159346836,0.27619442,602.79,601.67,0.33240813]
[1742159354042,0.331785,602.8,601.67,0.33240813]
[1742159354237,0.27621397,602.79,601.67,0.33240813]
[1742159354636,0.27621397,602.79,601.67,0.92140813]
[1742159369849,0.27621397,602.79,601.67,0.92140813]
[1742159370644,0.27614708,602.78,601.67,0.92140813]
[1742159370848,0.27614708,602.77,601.67,0.92140813]
[1742159371050,0.27614708,602.79,601.67,0.92140813]
[1742159371246,0.27614708,602.78,601.67,0.92140813]
[1742159371645,0.27614708,602.77,601.68,0.30517671]
[1742159371846,0.27614708,602.79,601.69,0.33239708]
[1742159372052,0.27614708,602.79,601.7,0.30517671]
[1742159372248,0.27614708,602.79,601.71,0.33238603]
[1742159373154,9.95099175,608.35,601.71,0.33238603]
[1742159373353,0.60765091,603.21,601.71,0.33238603]
[1742159373651,0.6076564,603.2,601.71,0.33238603]
[1742159373853,2.51575315,603.11,601.71,0.33238603]
[1742159374153,0.27609142,603.1,601.71,0.33238603]
[1742159374355,2.51575315,603.11,601.71,0.33238603]
[1742159374551,0.27610069,603.1,601.71,0.33238603]
[1742159375853,0.27610069,603.18,601.71,0.33238603]
[1742159376050,0.33158147,603.17,601.71,0.33238603]
[1742159376255,0.27610069,603.16,601.71,0.33238603]
[1742159376555,0.33159247,603.15,601.71,0.33238603]
[1742159376754,0.27610069,603.14,601.71,0.33238603]
[1742159376958,0.33160346,603.13,601.71,0.33238603]
[1742159377158,0.27610069,603.12,601.71,0.33238603]
[1742159377365,0.33161446,603.11,601.71,0.33238603]
[1742159377559,0.27610069,603.1,601.71,0.33238603]
[1742159377759,0.33162546,603.09,601.71,0.33238603]
[1742159377962,0.27613156,603.08,601.71,0.33238603]
[1742159381669,0.33162546,603.09,601.71,0.33238603]
[1742159381869,0.27613021,603.08,601.71,0.33238603]
[1742159383469,0.33162546,603.09,601.71,0.33238603]
[1742159383670,0.27612784,603.08,601.71,0.33238603]
[1742159384469,0.27612784,603.08,601.72,0.635]
[1742159384870,0.27612784,603.08,601.73,0.33237498]
[1742159386972,0.33162546,603.09,601.73,0.33237498]
[1742159387268,0.2761239,603.08,601.73,0.33237498]
[1742159389376,0.33163646,603.07,601.73,0.33237498]
[1742159389571,0.2761239,603.06,601.73,0.33237498]
[1742159389771,0.33164745,603.05,601.73,0.33237498]
[1742159389969,0.2761239,603.04,601.73,0.33237498]
[1742159390876,0.33164745,603.05,601.73,0.33237498]
[1742159391070,0.27615508,603.04,601.73,0.33237498]
[1742159392674,0.33164745,603.05,601.73,0.33237498]
[1742159392977,0.27614695,603.04,601.73,0.33237498]
[1742159396175,0.33164745,603.05,601.73,0.33237498]
[1742159396475,0.27615062,603.04,601.73,0.33237498]
[1742159398079,0.33164745,603.05,601.73,0.33237498]
[1742159398279,0.27615286,603.04,601.73,0.33237498]
[1742159404184,0.60780581,603.04,601.73,0.33237498]
[1742159404382,0.60781131,603.03,601.74,0.48]
[1742159404585,0.60781681,603.02,601.74,0.48]
[1742159404781,0.33166945,603.01,601.74,0.48]
[1742159404987,0.27624364,603.0,601.74,0.48]
[1742159405181,0.33168045,602.99,601.74,0.48]
[1742159405384,0.27624364,602.98,601.74,0.48]
[1742159405580,0.60795425,602.97,601.74,0.48]
[1742159405781,0.60795975,602.96,601.74,0.48]
[1742159405984,0.60796525,602.95,601.74,0.48]
[1742159406180,0.60797075,602.94,601.74,0.48]
[1742159406384,0.60797625,602.93,601.74,0.48]
[1742159406581,0.60798175,602.92,601.74,0.48]
[1742159406786,0.33172446,602.91,601.74,0.48]
[1742159406981,0.27626102,602.9,601.74,0.48]
[1742159407180,0.33173547,602.89,601.74,0.48]
[1742159407384,0.27626102,602.88,601.74,0.48]
[1742159407583,0.33174647,602.87,601.74,0.48]
[1742159407783,0.27626102,602.86,601.74,0.48]
[1742159407985,0.33175748,602.85,601.74,0.48]
[1742159408186,0.27626102,602.84,601.74,0.48]
[1742159408483,0.33176849,602.83,601.74,0.48]
[1742159408684,0.27626102,602.82,601.74,0.48]
[1742159410290,0.60803501,602.82,601.74,0.48]
[1742159410588,0.27626102,602.81,601.74,0.48]
[1742159412088,0.60804051,602.81,601.74,0.48]
[1742159412288,0.60804602,602.8,601.74,0.48]
[1742159412487,0.60805152,602.79,601.74,0.48]
[1742159412685,0.60805703,602.78,601.74,0.48]
[1742159412991,0.60806253,602.77,601.74,0.48]
[1742159413192,0.60806804,602.76,601.74,0.48]
[1742159413487,0.60807354,602.75,601.74,0.48]
[1742159413688,0.60807905,602.74,601.74,0.48]
[1742159413884,0.33182353,602.73,601.74,0.48]
[1742159414087,0.27626102,602.72,601.74,0.48]
[1742159414289,0.33183454,602.71,601.74,0.48]
[1742159414491,0.27626102,602.7,601.74,0.48]
[1742159414686,0.60810107,602.7,601.74,0.48]
[1742159414890,0.27626102,602.69,601.74,0.48]
[1742159416090,0.27626102,602.68,601.74,0.48]
[1742159416389,0.27626102,602.67,601.74,0.48]
[1742159416595,0.27626102,602.66,601.74,0.48]
[1742159416791,0.27626102,602.69,601.74,0.48]
[1742159416989,0.27626102,602.68,601.74,0.48]
[1742159417190,0.27626102,602.67,601.74,0.48]
[1742159417495,0.27626102,602.66,601.74,0.48]
[1742159417794,0.33184005,602.7,601.74,0.48]
[1742159417795,0.27626102,602.65,601.74,0.48]
[1742159417997,0.27626102,602.69,601.74,0.48]
[1742159418191,0.27626102,602.68,601.74,0.48]
[1742159418395,0.27626102,602.69,601.74,0.48]
[1742159421596,0.27632723,602.68,601.74,0.48]
[1742159421797,0.27632723,602.69,601.74,0.48]
[1742159421992,0.33184005,602.7,601.74,0.48]
[1742159421993,0.27632723,602.68,601.74,0.48]
[1742159422295,0.27632723,602.67,601.74,0.48]
[1742159422498,0.27632723,602.69,601.74,0.48]
[1742159424196,0.60817278,602.69,601.74,0.48]
[1742159424399,0.60817829,602.68,601.74,0.48]
[1742159424596,0.6081838,602.67,601.74,0.48]
[1742159424801,0.6081893,602.66,601.74,0.48]
[1742159425000,2.84760384,603.12,601.74,0.48]
[1742159425001,0.60819481,602.65,601.74,0.48]
[1742159425200,0.60820032,602.64,601.74,0.48]
[1742159425499,0.60822721,602.63,601.74,0.48]
[1742159425700,0.60823272,602.62,601.74,0.48]
[1742159425900,3.6425409,602.84,601.74,0.48]
[1742159425901,0.60823823,602.61,601.74,0.48]
[1742159426200,0.60824374,602.6,601.74,0.48]
[1742159426404,0.33190062,602.59,601.74,0.48]
[1742159426594,0.27634862,602.58,601.74,0.48]
[1742159426799,0.33191164,602.57,601.74,0.48]
[1742159427100,0.27634862,602.56,601.74,0.48]
[1742159427301,0.33192266,602.55,601.74,0.48]
[1742159427500,0.27634862,602.54,601.74,0.48]
[1742159428496,0.33193367,602.53,601.74,0.48]
[1742159428700,0.27634862,602.52,601.74,0.48]
[1742159428997,0.33194469,602.51,601.74,0.48]
[1742159429202,0.27634862,602.5,601.74,0.48]
[1742159429404,0.33195571,602.49,601.74,0.48]
[1742159429603,0.27634862,602.48,601.74,0.48]
[1742159433208,0.33195571,602.49,601.74,0.48]
[1742159433404,0.27642688,602.48,601.74,0.48]
[1742159434507,0.33196673,602.47,601.74,0.48]
[1742159434703,0.27642688,602.46,601.74,0.48]
[1742159434902,0.33197775,602.45,601.74,0.48]
[1742159435106,0.27642688,602.44,601.74,0.48]
[1742159435606,0.33198877,602.43,601.74,0.48]
[1742159435807,0.27642688,602.42,601.74,0.48]
[1742159436004,0.3319998,602.41,601.74,0.48]
[1742159436201,0.27642688,602.4,601.74,0.48]
[1742159436708,0.33201082,602.39,601.74,0.48]
[1742159436908,0.27642688,602.38,601.74,0.48]
[1742159438412,0.33202184,602.37,601.74,0.48]
[1742159438614,0.27642688,602.36,601.74,0.48]
[1742159438814,0.33203287,602.35,601.74,0.48]
[1742159439009,0.27642688,602.34,601.74,0.48]
[1742159440014,0.33203287,602.35,601.74,0.48]
[1742159440216,0.27647875,602.34,601.74,0.48]
[1742159440515,0.33204389,602.33,601.74,0.48]
[1742159440715,0.27647875,602.32,601.74,0.48]
[1742159440910,0.60852815,602.32,601.74,0.48]
[1742159441116,0.27647875,602.31,601.74,0.48]
[1742159442514,0.33206043,602.3,601.74,0.48]
[1742159442713,0.27647875,602.29,601.74,0.48]
[1742159442914,0.33207146,602.28,601.74,0.48]
[1742159443114,0.27647875,602.27,601.74,0.48]
[1742159446517,0.33208248,602.26,601.74,0.48]
[1742159446717,0.27647875,602.25,601.74,0.48]
[1742159446915,0.33209351,602.24,601.74,0.48]
[1742159447115,0.27647875,602.23,601.74,0.48]
[1742159447418,0.33210454,602.22,601.74,0.48]
[1742159447719,0.27647875,602.21,601.74,0.48]
[1742159448020,0.33211557,602.2,601.74,0.48]
[1742159448215,0.27647875,602.19,601.74,0.48]
[1742159448420,0.3321266,602.18,601.74,0.48]
[1742159448722,0.27647875,602.17,601.74,0.48]
[1742159448913,0.33213763,602.16,601.74,0.48]
[1742159449117,0.27647875,602.15,601.74,0.48]
[1742159449318,0.33214866,602.14,601.74,0.48]
[1742159449517,0.27647875,602.13,601.74,0.48]
[1742159450223,0.3321597,602.12,601.74,0.48]
[1742159450426,0.27647875,602.11,601.74,0.48]
[1742159451724,0.33217073,602.1,601.74,0.48]
[1742159451921,0.27647875,602.09,601.74,0.48]
[1742159452124,0.27647875,602.08,599.75,1.24242946]
[1742159452320,0.3321928,602.06,599.86,0.33341112]
[1742159452521,0.27647875,602.05,599.87,0.30578509]
[1742159452718,0.27647875,602.05,599.86,0.33341112]
[1742159452719,0.27647875,602.04,599.97,0.33335]
[1742159452919,0.3321928,602.06,599.97,0.33335]
[1742159453120,0.27676259,602.05,599.98,0.30580113]
[1742159453325,0.27676259,602.05,599.97,0.33335]
[1742159453326,0.27676259,602.04,599.99,0.30580113]
[1742159453528,0.33225902,601.94,600.01,0.33332777]
[1742159453720,0.27676259,601.93,600.02,0.30580113]
[1742159453924,0.33227558,601.91,600.04,0.33331111]
[1742159454123,0.27676259,601.9,600.05,0.30580113]
[1742159454326,0.33229215,601.88,600.06,0.3333]
[1742159454522,0.27676259,601.87,600.07,0.30580113]
[1742159454727,0.27693711,601.86,600.08,0.33328889]
[1742159454924,0.60924582,601.85,600.08,0.33328889]
[1742159455227,0.27693711,601.84,600.08,0.33328889]
[1742159455827,0.33232527,601.82,600.08,0.33328889]
[1742159456028,0.27693711,601.81,600.08,0.33328889]
[1742159456331,0.33234184,601.79,600.08,0.33328889]
[1742159456630,0.27690074,601.78,600.08,0.33328889]
[1742159456931,0.33235841,601.76,600.09,0.30593753]
[1742159457233,0.27690074,601.75,600.1,0.33327778]
[1742159457428,0.33237498,601.73,600.11,0.30593753]
[1742159457628,0.27690074,601.72,600.12,0.33326667]
[1742159457826,0.33239155,601.7,600.13,0.30593753]
[1742159458032,0.27690074,601.69,600.14,0.33325557]
[1742159458331,0.3324026,601.68,600.15,0.30593035]
[1742159458531,0.27688606,601.67,600.16,0.33324446]
[1742159459133,0.33241365,601.66,600.16,0.33324446]
[1742159459331,0.27688606,601.65,600.17,0.3058997]
[1742159460230,0.3324247,601.64,600.18,0.33323336]
[1742159460426,0.27686137,601.63,600.19,0.30590161]
[1742159460626,0.27686137,601.63,600.2,0.33322225]
[1742159460827,0.33243575,601.62,600.2,0.33322225]
[1742159461030,0.27686137,601.61,600.2,0.33322225]
[1742159461226,0.60930265,601.61,600.2,0.33322225]
[1742159461431,0.27686137,601.6,600.2,0.33322225]
[1742159461625,0.27686137,601.6,600.21,0.30588701]
[1742159461830,0.27686137,601.6,600.22,0.33321115]
[1742159462027,0.27686137,601.6,600.23,0.30588701]
[1742159462230,0.27686137,601.6,600.24,0.33320005]
[1742159462427,0.27686137,601.6,600.25,0.30588701]
[1742159462727,0.27686137,601.6,600.26,0.33318895]
[1742159462927,0.27686137,601.6,600.27,0.30588701]
[1742159463131,0.27686137,601.6,600.28,0.33317785]
[1742159463332,0.27686137,601.6,600.29,0.30588701]
[1742159463532,0.27686137,601.6,600.3,0.33316674]
[1742159463733,0.27686137,601.6,600.31,0.30588701]
[1742159463934,0.27686137,601.6,600.32,0.33315565]
[1742159464830,0.27686137,601.6,600.33,0.30585709]
[1742159465029,0.27686137,601.6,600.34,0.33314455]
[1742159465627,0.27686137,601.6,600.35,0.30584135]
[1742159465826,0.27686137,601.6,600.36,0.33313345]
[1742159468935,0.33244128,601.61,600.36,0.33313345]
[1742159469135,0.27678905,601.6,600.36,0.33313345]
[1742159470733,0.33244128,601.61,600.36,0.33313345]
[1742159470940,0.27679933,601.6,600.36,0.33313345]
[1742159471140,0.33244128,601.61,600.36,0.33313345]
[1742159474441,0.27683385,601.6,600.36,0.33313345]
[1742159483148,0.27683385,601.6,600.37,0.30584911]
[1742159485041,0.27683385,601.6,600.38,0.33312235]
[1742159485239,0.33244128,601.61,600.38,0.33312235]
[1742159485443,0.27677244,601.6,600.39,0.3058117]
[1742159485646,0.27677244,601.6,600.4,0.33311125]
[1742159486249,0.27677244,601.6,600.41,0.30579015]
[1742159486450,0.27677244,601.6,600.42,0.33310016]
[1742159486644,0.27677244,601.6,600.43,0.30579015]
[1742159486844,0.27677244,601.6,600.44,0.33308906]
[1742159487246,0.27674819,601.59,600.44,0.33308906]
[1742159487449,0.27674819,601.6,600.45,0.30578651]
[1742159487650,0.27674819,601.6,600.45,0.63887003]
[1742159487853,0.27674819,601.6,600.46,0.30578651]
[1742159492447,0.33244128,601.61,600.47,0.30578933]
[1742159492652,0.27675077,601.6,600.46,0.30578933]
[1742159492851,0.27675077,601.6,600.47,0.30578933]
[1742159493051,0.27675077,601.6,600.46,0.30578933]
[1742159493450,0.33244128,601.61,600.45,0.33308352]
[1742159493656,0.27675079,601.6,600.46,0.30578933]
[1742159494958,0.27675079,601.6,600.46,0.6388673]
[1742159495159,0.27675079,601.6,600.47,0.63886175]
[1742159495458,0.27675079,601.6,600.48,0.30578933]
[1742159496458,0.27673144,601.59,600.49,0.30576961]
[1742159496757,0.27673144,601.58,600.5,0.30576961]
[1742159496955,0.33244128,601.61,600.48,0.30576961]
[1742159496956,0.27673144,601.6,600.48,0.30576961]
[1742159497150,0.27673144,601.59,600.49,0.30576961]
[1742159497358,0.27673144,601.6,600.48,0.30576961]
[1742159497550,0.27673144,601.59,600.49,0.30576961]
[1742159497751,0.27673144,601.58,600.5,0.30576961]
[1742159497953,0.27673144,601.87,600.44,0.30576961]
[1742159498157,0.27672867,601.86,600.45,0.30576683]
[1742159498352,0.27672867,601.85,600.44,0.30576683]
[1742159498557,0.27672867,601.84,600.45,0.30576683]
[1742159498757,2.51575315,601.8,600.44,0.30576683]
[1742159498957,0.27672867,601.79,600.45,0.30576683]
[1742159499460,0.27672867,601.79,600.46,0.30576683]
[1742159499656,0.27672867,601.79,600.47,0.30576683]
[1742159499851,0.27672867,601.79,600.22,0.30576683]
[1742159500053,0.27672867,601.79,600.23,0.30576683]
[1742159500253,0.27672867,601.79,600.24,0.30576683]
[1742159500557,0.27672867,601.79,600.25,0.30576683]
[1742159500752,0.27672867,601.79,600.24,0.28958975]
[1742159500753,0.27672867,601.79,600.26,0.30576683]
[1742159500953,3.11126994,601.79,600.27,0.30576683]
[1742159501159,0.27672867,601.78,600.25,0.30576683]
[1742159501359,0.27672867,601.78,600.26,0.30576683]
[1742159501559,2.83454127,601.79,600.24,0.28958975]
[1742159501860,0.27673052,601.78,600.25,0.30576875]
[1742159502253,2.83454127,601.79,600.24,0.28958975]
[1742159502454,0.27672959,601.78,600.25,0.30576774]
[1742159503052,0.27672959,601.79,600.25,0.30576774]
[1742159504658,0.27672959,601.78,600.25,0.30576774]
[1742159504858,0.27672959,601.77,600.25,0.30576774]
[1742159505254,0.27672959,601.76,600.25,0.30576774]
[1742159505456,3.6315748,601.88,600.22,0.30576774]
[1742159505457,0.27672959,601.87,600.22,0.30576774]
[1742159505661,0.27672959,601.86,600.22,0.30576774]
[1742159505854,0.27672959,601.85,600.22,0.30576774]
[1742159506058,0.27672959,601.84,600.22,0.30576774]
[1742159506257,0.27672959,601.83,600.22,0.30576774]
[1742159506561,0.27672959,601.82,600.23,0.28958131]
[1742159506966,0.27672959,601.81,600.24,0.30576774]
[1742159507157,2.83454127,601.87,600.24,0.30576774]
[1742159507158,0.27672959,601.86,600.24,0.30576774]
[1742159507462,0.27672959,601.85,600.24,0.30576774]
[1742159507662,2.83454127,601.87,600.24,0.30576774]
[1742159507663,0.27672959,601.84,600.24,0.30576774]
[1742159507862,0.27672959,601.83,600.24,0.30576774]
[1742159508057,0.27672959,601.82,600.24,0.30576774]
[1742159508258,0.27672959,601.92,600.24,0.30576774]
[1742159508463,0.27672959,601.91,600.24,0.30576774]
[1742159508658,0.27672959,601.9,600.25,0.30576774]
[1742159508864,0.27672959,601.89,600.26,0.30576774]
[1742159509159,0.27672959,601.88,600.27,0.30576774]
[1742159509358,0.27672959,601.87,600.24,0.30576774]
[1742159509559,0.27672959,601.86,600.25,0.30576774]
[1742159509761,0.27672959,601.9,600.24,0.30576774]
[1742159509962,0.27672959,601.89,600.25,0.30576774]
[1742159510159,0.27672959,601.91,600.24,0.30576774]
[1742159510364,0.27672959,601.9,600.25,0.30576774]
[1742159510665,2.83454127,601.92,600.23,0.28957168]
[1742159510860,0.27672567,601.91,600.24,0.30576386]
[1742159511067,0.27672567,601.9,600.24,0.30576386]
[1742159511365,0.27672567,601.89,600.24,0.30576386]
[1742159511667,0.27672567,601.88,600.25,0.30576386]
[1742159511966,0.27672567,601.87,600.26,0.30576386]
[1742159512166,0.27672567,601.87,600.21,0.541]
[1742159512167,0.27672567,601.86,600.22,0.30576386]